[Event "GEO-ch 1st League 2021"]
[Site "Tbilisi"]
[Date "2021.04.06"]
[Round "9.6"]
[White "Kachkachishvili, Lasha"]
[Black "Mindiashvili, Tengiz"]
[Result "1-0"]
[ECO "E11"]
[WhiteElo "1681"]
[BlackElo "1923"]
[Annotator "ChessBase"]
[PlyCount "187"]
[EventDate "2021.03.29"]
[EventType "swiss"]
[EventCountry "GEO"]
[SourceTitle "playchess.com"]
[Source "ChessBase"]
[SourceQuality "1"]
[TimeControl "5400+30"]

1. d4 {[%emt 0:00:00]} Nf6 {[%emt 0:00:00]} 2. Nf3 {[%emt 0:00:11]} e6 {[%emt 0:00:12]} 3. c4 {[%emt 0:00:21]} Bb4+ {[%emt 0:00:45]} 4. Bd2 {[%emt 0:00:08]} Qe7 {[%emt 0:00:04]} 5. g3 {[%emt 0:00:10]} Nc6 {[%emt 0:00:06]} 6. Bg2 {[%emt 0:00:12]} Bxd2+ {[%emt 0:00:12]} 7. Nbxd2 {[%emt 0:00:38]} d6 {[%emt 0:00:13]} 8. O-O {[%emt 0:01:13]} O-O {[%emt 0:00:16]} 9. Qc2 {[%emt 0:05:07]} e5 {[%emt 0:00:16]} 10. e3 {[%emt 0:00:44]} Bg4 {[%emt 1:32:56]} 11. h3 {[%emt 0:04:38]} Bh5 {[%emt 0:00:00]} 12. d5 {[%emt 0:04:39]} Nb8 {[%emt 0:00:00]} 13. b4 {[%emt 0:02:58]} Bg6 {[%emt 0:00:00]} 14. Qb2 {[%emt 0:03:47]} c6 {[%emt 0:00:00]} 15. Nh4 {[%emt 0:06:40]} Bd3 {[%emt 0:00:00]} 16. Rfc1 {[%emt 0:00:17]} e4 {[%emt 0:00:00]} 17. Qd4 {[%emt 0:02:47]} Re8 {[%emt 0:00:00]} 18. Nf5 {[%emt 0:02:54]} Qd7 {[%emt 0:00:00]} 19. g4 {[%emt 0:01:31]} cxd5 {[%emt 0:00:00]} 20. cxd5 {[%emt 0:00:46]} Na6 {[%emt 0:00:00]} 21. Ng3 {[%emt 0:03:37]} Qb5 {[%emt 0:00:00]} 22. g5 {[%emt 0:00:58]} Nxd5 {[%emt 0:00:00]} 23. Nf5 {[%emt 0:01:39]} Nf6 {[%emt 0:00:00]} 24. Nxd6 {[%emt 0:02:32]} Qxg5 {[%emt 0:00:00]} 25. Nxe8 {[%emt 0:01:16]} Rxe8 {[%emt 0:00:00]} 26. a4 {[%emt 0:01:11]} b6 {[%emt 0:00:00]} 27. a5 {[%emt 0:01:59]} Qb5 {[%emt 0:00:00]} 28. axb6 {[%emt 0:02:03]} axb6 {[%emt 0:00:00]} 29. Nc4 {[%emt 0:02:23]} Rb8 {[%emt 0:00:00]} 30. Nxb6 {[%emt 0:05:38]} h6 {[%emt 0:00:00]} 31. Nc4 {[%emt 0:01:35]} Nxb4 {[%emt 0:00:00]} 32. Ra5 {[%emt 0:01:17]} Qe8 {[%emt 0:00:00]} 33. Nd6 {[%emt 0:02:24]} Qe6 {[%emt 0:00:00]} 34. Re5 {[%emt 0:01:48]} Qd7 {[%emt 0:00:00]} 35. Nxe4 {[%emt 0:01:04]} Qxd4 {[%emt 0:00:00]} 36. exd4 {[%emt 0:00:13]} Rd8 {[%emt 0:00:00]} 37. Nxf6+ {[%emt 0:01:32]} gxf6 {[%emt 0:00:00]} 38. Re3 {[%emt 0:00:43]} Rxd4 {[%emt 0:00:00]} 39. Rd1 {[%emt 0:01:31]} Rd7 {[%emt 0:00:00]} 40. Be4 {[%emt 0:00:55]} Bb5 {[%emt 0:00:00]} 41. Rb1 {[%emt 0:05:09]} Rd4 {[%emt 0:00:00]} 42. Bf3 {[%emt 0:02:10]} Bd7 {[%emt 0:00:00]} 43. Re4 {[%emt 0:02:08]} Nc6 {[%emt 0:00:00]} 44. Rxd4 {[%emt 0:02:31]} Nxd4 {[%emt 0:00:00]} 45. Bg4 {[%emt 0:00:54]} Bxg4 {[%emt 0:00:00]} 46. hxg4 {[%emt 0:00:01]} f5 {[%emt 0:00:00]} 47. Rb4 {[%emt 0:00:28]} Nc6 {[%emt 0:00:00]} 48. Rb6 {[%emt 0:00:57]} Ne7 {[%emt 0:00:00]} 49. gxf5 {[%emt 0:00:29]} Nxf5 {[%emt 0:00:00]} 50. Rf6 {[%emt 0:00:08]} Ne7 {[%emt 0:00:00]} 51. Rxh6 {[%emt 0:00:07]} Kg7 {[%emt 0:00:00]} 52. Ra6 {[%emt 0:00:08]} Ng6 {[%emt 0:00:00]} 53. Kh2 {[%emt 0:00:20]} Kh6 {[%emt 0:00:00]} 54. Kg3 {[%emt 0:00:44]} f5 {[%emt 0:00:00]} 55. Rf6 {[%emt 0:03:12]} Kg5 {[%emt 0:00:00]} 56. Rf7 {[%emt 0:00:10]} f4+ {[%emt 0:00:00]} 57. Kh3 {[%emt 0:00:07]} Ne5 {[%emt 0:00:00]} 58. Rf8 {[%emt 0:00:50]} Ng6 {[%emt 0:00:00]} 59. Ra8 {[%emt 0:00:29]} Kf5 {[%emt 0:00:00]} 60. f3 {[%emt 0:02:51]} Ne5 {[%emt 0:00:00]} 61. Rf8+ {[%emt 0:01:03]} Kg5 {[%emt 0:00:00]} 62. Kg2 {[%emt 0:00:09]} Ng6 {[%emt 0:00:00]} 63. Ra8 {[%emt 0:00:19]} Kf5 {[%emt 0:00:00]} 64. Ra5+ {[%emt 0:00:07]} Ne5 {[%emt 0:00:00]} 65. Kf2 {[%emt 0:00:05]} Kf6 {[%emt 0:00:00]} 66. Ke2 {[%emt 0:00:08]} Ke6 {[%emt 0:00:00]} 67. Ra4 {[%emt 0:00:14]} Kf5 {[%emt 0:00:00]} 68. Re4 {[%emt 0:00:11]} Ng6 {[%emt 0:00:00]} 69. Re8 {[%emt 0:00:22]} Ne5 {[%emt 0:00:00]} 70. Rf8+ {[%emt 0:00:12]} Kg5 {[%emt 0:00:00]} 71. Kf2 {[%emt 0:00:09]} Nd3+ {[%emt 0:00:00]} 72. Kf1 {[%emt 0:00:18]} Ne5 {[%emt 0:00:00]} 73. Kg2 {[%emt 0:00:11]} Ng6 {[%emt 0:00:00]} 74. Rg8 {[%emt 0:01:27]} Kf5 {[%emt 0:00:00]} 75. Kh3 {[%emt 0:01:25]} Ne5 {[%emt 0:00:00]} 76. Rf8+ {[%emt 0:00:25]} Kg5 {[%emt 0:00:00]} 77. Kg2 {[%emt 0:00:06]} Ng6 {[%emt 0:00:00]} 78. Rb8 {[%emt 0:00:08]} Kf5 {[%emt 0:00:00]} 79. Kh3 {[%emt 0:00:41]} Ne5 {[%emt 0:00:00]} 80. Rb3 {[%emt 0:00:50]} Kg5 {[%emt 0:00:00]} 81. Ra3 {[%emt 0:00:31]} Kh6 {[%emt 0:00:00]} 82. Kh4 {[%emt 0:00:25]} Kg6 {[%emt 0:00:00]} 83. Rb3 {[%emt 0:00:17]} Kh6 {[%emt 0:00:00]} 84. Rb6+ {[%emt 0:01:09]} Kg7 {[%emt 0:00:00]} 85. Rb3 {[%emt 0:01:20]} Kh6 {[%emt 0:00:00]} 86. Rb6+ {[%emt 0:00:14]} Kg7 {[%emt 0:00:00]} 87. Kg5 {[%emt 0:00:02]} Nxf3+ {[%emt 0:00:00]} 88. Kxf4 {[%emt 0:00:09]} Nd4 {[%emt 0:00:00]} 89. Ke4 {[%emt 0:00:20]} Ne2 {[%emt 0:00:00]} 90. Rb3 {[%emt 0:01:21]} Kf6 {[%emt 0:00:00]} 91. Re3 {[%emt 0:01:32]} Nc1 {[%emt 0:00:00]} 92. Kd4 {[%emt 0:00:51]} Na2 {[%emt 0:01:12]} 93. Kc4 {[%emt 0:00:16]} Kf5 {[%emt 0:00:29]} 94. Re1 {[%emt 0:00:09]} 1-0

[Event "GEO-ch 1st League 2021"]
[Site "Tbilisi"]
[Date "2021.04.06"]
[Round "9.8"]
[White "Lomaia, Diana"]
[Black "Tsereteli, Tornike"]
[Result "0-1"]
[ECO "E04"]
[WhiteElo "1946"]
[BlackElo "1765"]
[Annotator "ChessBase"]
[PlyCount "114"]
[EventDate "2021.03.29"]
[EventType "swiss"]
[EventCountry "GEO"]
[SourceTitle "playchess.com"]
[Source "ChessBase"]
[SourceQuality "1"]
[TimeControl "5400+30"]

1. d4 {[%emt 0:00:38]} Nf6 {[%emt 0:00:00]} 2. c4 {[%emt 0:00:06]} e6 {[%emt 0:00:01]} 3. g3 {[%emt 0:00:23]} d5 {[%emt 0:00:06]} 4. Nf3 {[%emt 0:00:08]} Nc6 {[%emt 0:00:29]} 5. Bg2 {[%emt 0:00:49]} dxc4 {[%emt 0:00:05]} 6. Qa4 {[%emt 0:00:47]} Bb4+ {[%emt 0:00:05]} 7. Bd2 {[%emt 0:00:19]} Nd5 {[%emt 0:00:27]} 8. Qb5 {[%emt 0:07:18]} Bxd2+ {[%emt 0:13:08]} 9. Nbxd2 {[%emt 0:03:22]} Ndb4 {[%emt 0:00:27]} 10. O-O {[%emt 0:01:47]} Qd5 {[%emt 0:04:10]} 11. Qxc4 {[%emt 0:00:35]} Qxc4 {[%emt 0:00:06]} 12. Nxc4 {[%emt 0:00:04]} O-O {[%emt 0:01:11]} 13. a3 {[%emt 0:01:21]} Nd5 {[%emt 0:00:20]} 14. Rac1 {[%emt 0:02:27]} f6 {[%emt 0:00:51]} 15. Rfd1 {[%emt 0:01:14]} Nb6 {[%emt 0:04:46]} 16. e4 {[%emt 0:06:15]} Rd8 {[%emt 0:00:40]} 17. Ne3 {[%emt 0:00:37]} Rb8 {[%emt 0:02:41]} 18. h4 {[%emt 0:09:25]} Na8 {[%emt 0:00:38]} 19. Bf1 {[%emt 0:04:58]} Ne7 {[%emt 0:00:23]} 20. b4 {[%emt 0:02:47]} c6 {[%emt 0:00:32]} 21. Bc4 {[%emt 0:01:06]} Nc7 {[%emt 0:00:59]} 22. Ng2 {[%emt 0:02:20]} h6 {[%emt 0:02:30]} 23. h5 {[%emt 0:03:24]} Kf7 {[%emt 0:01:02]} 24. Nf4 {[%emt 0:02:08]} Bd7 {[%emt 0:02:15]} 25. Nd2 {[%emt 0:06:02]} g5 {[%emt 0:04:48]} 26. hxg6+ {[%emt 0:01:57]} Nxg6 {[%emt 0:00:05]} 27. Nxg6 {[%emt 0:01:37]} Kxg6 {[%emt 0:00:06]} 28. Nb3 {[%emt 0:00:48]} b6 {[%emt 0:01:06]} 29. Rc2 {[%emt 0:05:07]} Be8 {[%emt 0:01:31]} 30. Rcd2 {[%emt 0:00:57]} Bf7 {[%emt 0:01:17]} 31. f4 {[%emt 0:01:32]} f5 {[%emt 0:02:36]} 32. exf5+ {[%emt 0:01:56]} Kxf5 {[%emt 0:01:02]} 33. Kf2 {[%emt 0:05:13]} Rd6 {[%emt 0:01:58]} 34. Rh1 {[%emt 0:00:48]} Kg6 {[%emt 0:00:59]} 35. Kf3 {[%emt 0:02:42]} Kg7 {[%emt 0:01:43]} 36. g4 {[%emt 0:00:53]} Rf8 {[%emt 0:03:16]} 37. Kg3 {[%emt 0:02:45]} Bg6 {[%emt 0:01:56]} 38. Re1 {[%emt 0:03:34]} Nd5 {[%emt 0:05:01]} 39. Bxd5 {[%emt 0:00:41]} cxd5 {[%emt 0:00:05]} 40. Rc1 {[%emt 0:00:46]} h5 {[%emt 0:01:09]} 41. gxh5 {[%emt 0:00:27]} Bxh5 {[%emt 0:00:10]} 42. Rdc2 {[%emt 0:00:32]} Kf6 {[%emt 0:03:28]} 43. Rh2 {[%emt 0:05:45]} Rg8+ {[%emt 0:01:58]} 44. Kf2 {[%emt 0:00:01]} Be8 {[%emt 0:00:48]} 45. Rh7 {[%emt 0:08:27]} Rg4 {[%emt 0:03:05]} 46. Rxa7 {[%emt 0:00:43]} Rxf4+ {[%emt 0:00:03]} 47. Kg3 {[%emt 0:00:07]} Rf5 {[%emt 0:02:37]} 48. Rc8 {[%emt 0:00:49]} Bf7 {[%emt 0:00:31]} 49. b5 {[%emt 0:01:53]} Kg7 {[%emt 0:02:46]} 50. Rc6 {[%emt 0:00:33]} Rd8 {[%emt 0:00:32]} 51. Nd2 {[%emt 0:02:27]} Rg8 {[%emt 0:00:33]} 52. Nf3 {[%emt 0:01:08]} Kh8+ {[%emt 0:00:50]} 53. Kf2 {[%emt 0:00:18]} Bh5 {[%emt 0:00:06]} 54. Rxe6 {[%emt 0:00:42]} Rxf3+ {[%emt 0:01:09]} 55. Ke1 {[%emt 0:00:03]} Rg1+ {[%emt 0:00:50]} 56. Kd2 {[%emt 0:00:01]} Rf2+ {[%emt 0:00:37]} 57. Kd3 {[%emt 0:00:24]} Rg3+ {[%emt 0:00:13]} 0-1

[Event "GEO-ch 1st League 2021"]
[Site "Tbilisi"]
[Date "2021.04.06"]
[Round "9.9"]
[White "Shapovalovi, Vasiko"]
[Black "Esadze, Tamari"]
[Result "1/2-1/2"]
[ECO "D32"]
[WhiteElo "1741"]
[BlackElo "1889"]
[Annotator "NA"]
[PlyCount "76"]
[EventDate "2021.03.29"]
[EventType "swiss"]
[EventCountry "GEO"]
[SourceTitle "playchess.com"]
[Source "ChessBase"]
[SourceQuality "1"]
[TimeControl "5400+30"]

1. Nf3 {[%emt 0:00:00]} Nf6 {[%emt 0:00:09]} 2. e3 {[%emt 0:00:00]} d5 {[%emt 0:00:06]} 3. c4 {[%emt 0:00:00]} e6 {[%emt 0:00:06]} 4. Be2 {[%emt 0:00:00]} Be7 {[%emt 0:00:15]} 5. O-O {[%emt 0:00:10]} O-O {[%emt 0:00:08]} 6. Nc3 {[%emt 0:00:06]} c5 $11 {[%emt 0:00:32]} 7. cxd5 {[%emt 0:00:07]} exd5 {[%emt 0:01:34]} 8. d4 {[%emt 0:00:05]} Nc6 {[%emt 0:00:30]} 9. b3 {[%emt 0:00:09]} Be6 {[%emt 0:00:46]} 10. Bb2 {[%emt 0:00:05]} Rc8 {[%emt 0:00:33]} 11. Rc1 {[%emt 0:00:10]} cxd4 {[%emt 0:02:58]} 12. Nxd4 {[%emt 0:00:06]} Nxd4 {[%emt 0:01:17]} 13. Qxd4 {[%emt 0:00:11]} Bc5 {[%emt 0:01:50]} 14. Qh4 {[%emt 0:02:51]} Ne4 {[%emt 0:13:06]} 15. Qxd8 {[%emt 0:02:55]} Rfxd8 {[%emt 0:00:06]} 16. Nb5 {[%emt 0:00:39]} a6 {[%emt 0:04:40]} 17. Nd4 {[%emt 0:00:39]} Bb4 {[%emt 0:02:55]} 18. Bd3 {[%emt 0:07:55]} Bd2 {[%emt 0:05:43]} 19. Rxc8 {[%emt 0:03:09]} Rxc8 {[%emt 0:00:06]} 20. Rd1 {[%emt 0:24:53]} Bc3 {[%emt 0:05:30]} 21. Bxe4 {[%emt 0:06:38]} Bxb2 {[%emt 0:02:12]} 22. Nxe6 {[%emt 0:00:19]} fxe6 {[%emt 0:00:15]} 23. Bb1 {[%emt 0:00:08]} e5 {[%emt 0:02:57]} 24. Bf5 {[%emt 0:00:58]} Rc6 {[%emt 0:01:00]} 25. Bd7 {[%emt 0:02:03]} Rd6 {[%emt 0:07:03]} 26. Rxd5 {[%emt 0:00:12]} Rxd5 {[%emt 0:00:05]} 27. Be6+ {[%emt 0:00:04]} Kf8 {[%emt 0:00:03]} 28. Bxd5 {[%emt 0:00:06]} b6 {[%emt 0:00:01]} 29. Kf1 {[%emt 0:00:24]} Ke7 {[%emt 0:00:05]} 30. Ke2 {[%emt 0:00:20]} Kd6 {[%emt 0:00:26]} 31. Be4 {[%emt 0:00:10]} h6 {[%emt 0:00:04]} 32. Kd3 {[%emt 0:00:31]} Kc5 {[%emt 0:04:34]} 33. a4 {[%emt 0:03:19]} a5 {[%emt 0:01:39]} 34. Bg6 {[%emt 0:00:23]} Kd6 {[%emt 0:01:47]} 35. Ke4 {[%emt 0:00:17]} Ke6 {[%emt 0:00:48]} 36. f4 {[%emt 0:00:27]} exf4 {[%emt 0:00:39]} 37. exf4 {[%emt 0:00:05]} Bc3 {[%emt 0:01:30]} 38. g4 {[%emt 0:00:24]} Be1 {[%emt 0:01:04]} 1/2-1/2

[Event "GEO-ch 1st League 2021"]
[Site "Tbilisi"]
[Date "2021.04.06"]
[Round "9.10"]
[White "Darsadze, Nikoloz"]
[Black "Elashvili, Giorgi"]
[Result "0-1"]
[ECO "D02"]
[WhiteElo "1694"]
[BlackElo "1857"]
[Annotator "NA"]
[PlyCount "60"]
[EventDate "2021.03.29"]
[EventType "swiss"]
[EventCountry "GEO"]
[SourceTitle "playchess.com"]
[Source "ChessBase"]
[SourceQuality "1"]
[TimeControl "5400+30"]

1. d4 {[%emt 0:00:43]} d5 {[%emt 0:02:43]} 2. Nf3 {[%emt 0:00:05]} Nf6 {[%emt 0:00:06]} 3. Bf4 {[%emt 0:00:04]} c5 {[%emt 0:00:05]} 4. e3 {[%emt 0:01:21]} Nc6 {[%emt 0:00:38]} 5. c3 {[%emt 0:05:08]} Qb6 {[%emt 0:00:36]} 6. Qb3 {[%emt 0:03:19]} c4 {[%emt 0:02:03]} 7. Qc2 {[%emt 0:00:01]} Bf5 {[%emt 0:00:10]} 8. Qc1 {[%emt 0:00:01]} h6 {[%emt 0:02:37]} 9. h3 {[%emt 0:01:01]} e6 {[%emt 0:00:07]} 10. Nbd2 {[%emt 0:01:11]} Be7 {[%emt 0:01:26]} 11. Be2 {[%emt 0:00:02]} O-O {[%emt 0:00:13]} 12. O-O {[%emt 0:01:37]} Rfc8 {[%emt 0:12:18]} 13. Bd1 {[%emt 0:07:43]} Qa5 {[%emt 0:11:09]} 14. Bc2 {[%emt 0:01:43]} b5 {[%emt 0:03:01]} 15. Bxf5 {[%emt 0:16:10]} exf5 {[%emt 0:00:27]} 16. Nh4 {[%emt 0:00:01]} g5 {[%emt 0:05:42]} 17. Nxf5 {[%emt 0:00:07]} gxf4 {[%emt 0:00:03]} 18. Nxh6+ {[%emt 0:01:55]} Kf8 {[%emt 0:02:12]} 19. exf4 {[%emt 0:02:43]} b4 {[%emt 0:02:04]} 20. Qc2 {[%emt 0:02:40]} bxc3 {[%emt 0:01:44]} 21. bxc3 {[%emt 0:00:04]} Rab8 {[%emt 0:20:09]} 22. g4 {[%emt 0:18:03]} Qa3 {[%emt 0:06:28]} 23. g5 {[%emt 0:02:29]} Ng8 {[%emt 0:04:01]} 24. Nf3 {[%emt 0:32:55]} Nxh6 {[%emt 0:04:16]} 25. gxh6 {[%emt 0:00:02]} Qd6 {[%emt 0:00:51]} 26. h7 {[%emt 0:01:10]} Kg7 {[%emt 0:00:51]} 27. Ne5 {[%emt 0:00:41]} Nxe5 {[%emt 0:00:50]} 28. fxe5 {[%emt 0:00:20]} Qg6+ {[%emt 0:00:45]} 29. Qxg6+ {[%emt 0:00:04]} Kxg6 {[%emt 0:00:48]} 30. f4 {[%emt 0:01:02]} Kf5 {[%emt 0:04:31]} 0-1

[Event "GEO-ch 1st League 2021"]
[Site "Tbilisi"]
[Date "2021.04.06"]
[Round "9.12"]
[White "Safarov, Deniel"]
[Black "Kvikvinia, Teimuraz"]
[Result "1-0"]
[ECO "B32"]
[WhiteElo "1720"]
[BlackElo "1632"]
[Annotator "NA"]
[PlyCount "77"]
[EventDate "2021.03.29"]
[EventType "swiss"]
[EventCountry "GEO"]
[SourceTitle "playchess.com"]
[Source "ChessBase"]
[SourceQuality "1"]
[TimeControl "5400+30"]

1. e4 {[%emt 0:00:00]} c5 {[%emt 0:00:00]} 2. Nf3 {[%emt 0:00:00]} Nc6 {[%emt 0:00:00]} 3. d4 {[%emt 0:00:00]} cxd4 {[%emt 0:00:00]} 4. Nxd4 {[%emt 0:00:00]} e5 {[%emt 0:00:00]} 5. Nb5 {[%emt 0:00:00]} d6 {[%emt 0:00:00]} 6. N1c3 {[%emt 0:00:00]} a6 {[%emt 0:00:00]} 7. Na3 {[%emt 0:00:00]} f5 {[%emt 0:00:03]} 8. exf5 {[%emt 0:03:29]} Bxf5 {[%emt 0:03:35]} 9. Be3 {[%emt 0:03:15]} Nf6 {[%emt 0:07:28]} 10. Bc4 {[%emt 0:13:12]} b5 {[%emt 0:16:56]} 11. Bd5 {[%emt 0:01:10]} Bd7 {[%emt 0:13:58]} 12. Ne4 {[%emt 0:01:34]} Nxe4 {[%emt 0:09:36]} 13. Bxe4 {[%emt 0:00:46]} Qf6 {[%emt 0:01:26]} 14. c4 {[%emt 0:01:40]} b4 {[%emt 0:03:09]} 15. Nc2 {[%emt 0:01:06]} Rb8 {[%emt 0:01:40]} 16. O-O {[%emt 0:00:35]} Be7 {[%emt 0:00:51]} 17. Qd3 {[%emt 0:01:02]} g5 {[%emt 0:08:21]} 18. Rad1 {[%emt 0:02:12]} Rd8 {[%emt 0:06:16]} 19. Bb6 {[%emt 0:02:43]} Rb8 {[%emt 0:03:09]} 20. Ne3 {[%emt 0:03:44]} Nd4 {[%emt 0:02:36]} 21. Nd5 {[%emt 0:00:46]} Qg7 {[%emt 0:00:33]} 22. Nc7+ {[%emt 0:00:15]} Kf8 {[%emt 0:00:38]} 23. Bxd4 {[%emt 0:00:04]} exd4 {[%emt 0:00:14]} 24. f4 {[%emt 0:00:01]} g4 {[%emt 0:00:41]} 25. Bc6 {[%emt 0:00:58]} Bc8 {[%emt 0:00:33]} 26. f5 {[%emt 0:00:20]} Bf6 {[%emt 0:00:59]} 27. Ne6+ {[%emt 0:01:04]} Bxe6 {[%emt 0:00:08]} 28. fxe6 {[%emt 0:00:02]} Ke7 {[%emt 0:00:29]} 29. c5 {[%emt 0:02:27]} dxc5 {[%emt 0:02:00]} 30. Qxa6 {[%emt 0:00:10]} Rhc8 {[%emt 0:01:45]} 31. Bd7 {[%emt 0:09:54]} Ra8 {[%emt 0:03:49]} 32. Qb6 {[%emt 0:00:51]} Rab8 {[%emt 0:00:26]} 33. Qa7 {[%emt 0:00:57]} Ra8 {[%emt 0:00:45]} 34. Qb7 {[%emt 0:00:01]} Rab8 {[%emt 0:14:56]} 35. Qd5 {[%emt 0:00:26]} Rc7 {[%emt 0:00:00]} 36. Rxf6 {[%emt 0:05:02]} Qxf6 {[%emt 0:00:00]} 37. Rf1 {[%emt 0:00:07]} Qg7 {[%emt 0:00:00]} 38. Rf7+ {[%emt 0:00:56]} Qxf7 {[%emt 0:00:00]} 39. exf7 {[%emt 0:00:02]} 1-0